Workbook

Sheet Tabelle1
B1: Achtung:
B2: Bitte füllen Sie das Formular aus. Nach Prüfung der Daten speichern Sie die Vorlage bitte als Excel und pdf und laden beide Dokumente im BIH-Antragsportal hoch.
B3: Beim Ausfüllen der Vorlage achten Sie bitte darauf, das Budget entsprechend der beteiligten Einrichtungen der Berlin University Alliance einzutragen.
B4: Budgetgrenzen: Es können mindestens 25.000 Euro und maximal 150.000 Euro pro Jahr beantragt werden. Kürzeste Laufzeit für Projekte ist 1 Jahr, maximale 2 Jahre.
A6: Pflichtfeld
A7: Projekttitel | B7: Towards open and FAIR hardware
A8: Hauptantragsteller*in | B8: Prof. Dr.-Ing. Roland Jochem
A9: Verbund-Einrichtung | B9: TU BERLIN
A10: Gewünschter Starttermin | B10: (01/06/2021)
A11: Geplante Laufzeit in Monaten | B11: 24
A13: Verteilung der beantragten Mittel auf die Einrichtungen der Berlin University Alliance
A15: Freie Universität Berlin | B15: 2021 | C15: 2022 | D15: 2023
A16: Antragsteller*in 1 (TIM Landgraf)
A17: Sachkosten | E17: Erläuterungen
A18: Open Access-Gebühren | C18: 1500
A19: Veranstaltungen
A20: Werkverträge
A21: Reisekosten | C21: 500 | D21: 500
A22: Weitere SK | E22: Bitte definieren Sie die Ausgabe
A23: Gesamt Sachkosten | B23: =SUM(B18:B22) -> 0 | C23: =SUM(C18:C22) -> 2000 | D23: =SUM(D18:D22) -> 500
A24: Eingruppierung Personal
A25: E9-12, Stellenumfang bitte hier eintragen
A26: E13, Stellenumfang bitte hier eintragen | B26: 18125 | C26: 36250 | D26: 18125
A27: E14-15, Stellenumfang bitte hier eintragen
A28: Personalkosten SHK | B28: 2250 | C28: 4500 | D28: 2250
A29: Gesamt Personalkosten | B29: =SUM(B25:B28) -> 20375 | C29: =SUM(C25,C26,C27,C28) -> 40750 | D29: =SUM(D25:D28) -> 20375
A30: Gesamt 1 | B30: =SUM(B23,B29) -> 20375 | C30: =SUM(C23,C29) -> 42750 | D30: =SUM(D23,D29) -> 20875
A32: Antragsteller*in 2 (bitte Name einsetzen)
A33: Sachkosten | E33: Erläuterungen
A34: Open Access-Gebühren
A35: Veranstaltungen
A36: Werkverträge
A37: Reisekosten
A38: Weitere SK | E38: Bitte definieren Sie die Ausgabe
A39: Gesamt Sachkosten | B39: =SUM(B34:B38) -> 0 | C39: =SUM(C34:C38) -> 0 | D39: =SUM(D34:D38) -> 0
A40: Personalkosten
A41: E9-12, Stellenumfang bitte hier eintragen
A42: E13, Stellenumfang bitte hier eintragen
A43: E14-15, Stellenumfang bitte hier eintragen
A44: Personalkosten SHK
A45: Gesamt Personalkosten | B45: =SUM(B41:B44) -> 0 | C45: =SUM(C41:C44) -> 0 | D45: =SUM(D41:D44) -> 0
A46: Gesamt 2 | B46: =SUM(B39,B45) -> 0 | C46: =SUM(C39,C45) -> 0 | D46: =SUM(D39,D45) -> 0
A48: Antragsteller*in 3 (bitte Name einsetzen)
A49: Sachkosten | E49: Erläuterungen
A50: Open Access-Gebühren
A51: Veranstaltungen
A52: Werkverträge
A53: Reisekosten
A54: Weitere SK | E54: Bitte definieren Sie die Ausgabe
A55: Gesamt Sachkosten | B55: =SUM(B50:B54) -> 0 | C55: =SUM(C50:C54) -> 0 | D55: =SUM(D50:D54) -> 0
A56: Personalkosten
A57: E9-12, Stellenumfang bitte hier eintragen
A58: E13, Stellenumfang bitte hier eintragen
A59: E14-15, Stellenumfang bitte hier eintragen
A60: Personalkosten SHK
A61: Gesamt Personalkosten | B61: =SUM(B57:B60) -> 0 | C61: =SUM(C57:C60) -> 0 | D61: =SUM(D57:D60) -> 0
A62: Gesamt 3 | B62: =SUM(B55,B61) -> 0 | C62: =SUM(C55,C61) -> 0 | D62: =SUM(D55,D61) -> 0
A64: Gesamtbudget Freie Universität nach Jahr | B64: =SUM(B30,B46,B62) -> 20375 | C64: =SUM(C30,C46,C62) -> 42750 | D64: =SUM(D30,D46,D62) -> 20875
A65: Gesamtbudget Freie Universität nach Laufzeit | B65: =SUM(B64,C64,D64) -> 84000
A67: Humboldt-Universität zu Berlin | B67: 2021 | C67: 2022 | D67: 2023
A68: Antragsteller*in 1 (MATTHEW LARKUM)
A69: Sachkosten | E69: Erläuterungen
A70: Open Access-Gebühren | D70: 1500
A71: Veranstaltungen | D71: 8000 | E71: International conference: 3500 Reise und aufenthalts-kosten für speaker und studenten, 3500 catering, 1000 materialien,
A72: Werkverträge
A73: Reisekosten | C73: 500 | D73: 500
A74: Weitere SK | B74: 1500 | C74: 500 | D74: 500 | E74: Online presence: server and corporate design
A75: Gesamt Sachkosten | B75: =SUM(B70:B74) -> 1500 | C75: =SUM(C70:C74) -> 1000 | D75: =SUM(D70:D74) -> 10500
A76: Personalkosten
A77: E9-12, Stellenumfang bitte hier eintragen
A78: E13, 50% | C78: 18000 | D78: 18000
A79: E14-15, 35% | B79: 10500 | C79: 21000 | D79: 10500
A80: Personalkosten SHK | B80: 1500 | C80: 3000 | D80: 1500
A81: Gesamt Personalkosten | B81: =SUM(B77:B80) -> 12000 | C81: =SUM(C77:C80) -> 42000 | D81: =SUM(D77:D80) -> 30000
A82: Gesamt 1 | B82: =SUM(B75,B81) -> 13500 | C82: =SUM(C75,C81) -> 43000 | D82: =SUM(D75,D81) -> 40500
A84: Antragsteller*in 2 (bitte Name einsetzen)
A85: Sachkosten | E85: Erläuterungen
A86: Open Access-Gebühren
A87: Veranstaltungen
A88: Werkverträge
A89: Reisekosten
A90: Weitere SK | E90: Bitte definieren Sie die Ausgabe
A91: Gesamt Sachkosten | B91: =SUM(B86:B90) -> 0 | C91: =SUM(C86:C90) -> 0 | D91: =SUM(D86:D90) -> 0
A92: Personalkosten
A93: E9-12, Stellenumfang bitte hier eintragen
A94: E13, Stellenumfang bitte hier eintragen
A95: E14-15, Stellenumfang bitte hier eintragen
A96: Personalkosten SHK
A97: Gesamt Personalkosten | B97: =SUM(B93:B96) -> 0 | C97: =SUM(C93:C96) -> 0 | D97: =SUM(D93:D96) -> 0
A98: Gesamt 2 | B98: =SUM(B91,B97) -> 0 | C98: =SUM(C91,C97) -> 0 | D98: =SUM(D91,D97) -> 0
A100: Antragsteller*in 3 (bitte Name einsetzen)
A101: Sachkosten | E101: Erläuterungen
A102: Open Access-Gebühren
A103: Veranstaltungen
A104: Werkverträge
A105: Reisekosten
A106: Weitere SK | E106: Bitte definieren Sie die Ausgabe
A107: Gesamt Sachkosten | B107: =SUM(B102:B106) -> 0 | C107: =SUM(C102:C106) -> 0 | D107: =SUM(D102:D106) -> 0
A108: Personalkosten
A109: E9-12, Stellenumfang bitte hier eintragen
A110: E13, Stellenumfang bitte hier eintragen
A111: E14-15, Stellenumfang bitte hier eintragen
A112: Personalkosten SHK
A113: Gesamt Personalkosten | B113: =SUM(B109:B112) -> 0 | C113: =SUM(C109:C112) -> 0 | D113: =SUM(D109:D112) -> 0
A114: Gesamt 3 | B114: =SUM(B107,B113) -> 0 | C114: =SUM(C107,C113) -> 0 | D114: =SUM(D107,D113) -> 0
A116: Gesamtbudget Humboldt-Universität nach Jahr | B116: =SUM(B82,B98,B114) -> 13500 | C116: =SUM(C82,C98,C114) -> 43000 | D116: =SUM(D82,D98,D114) -> 40500
A117: Gesamtbudget Humboldt-Universität nach Laufzeit | B117: =SUM(B116,C116,D116) -> 97000
A119: Technische Universität Berlin | B119: 2021 | C119: 2022 | D119: 2023
A120: Antragsteller*in 1 (Prof. Dr.-Ing. Roland Jochem)
A121: Sachkosten | E121: Erläuterungen
A122: Open Access-Gebühren | C122: 1500
A123: Veranstaltungen | C123: 500 | D123: 500
A124: Werkverträge
A125: Reisekosten
A126: Weitere SK | E126: Bitte definieren Sie die Ausgabe
A127: Gesamt Sachkosten | B127: =SUM(B122:B126) -> 0 | C127: =SUM(C122:C126) -> 2000 | D127: =SUM(D122:D126) -> 500
A128: Personalkosten
A129: E9-12, Stellenumfang bitte hier eintragen
A130: E13, 75% | B130: 27000 | C130: 54000 | D130: 27000
A131: E14-15, Stellenumfang bitte hier eintragen
A132: Personalkosten SHK | B132: 2250 | C132: 4500 | D132: 2250
A133: Gesamt Personalkosten | B133: =SUM(B129:B132) -> 29250 | C133: =SUM(C129:C132) -> 58500 | D133: =SUM(D129:D132) -> 29250
A134: Gesamt 1 | B134: =SUM(B127,B133) -> 29250 | C134: =SUM(C127,C133) -> 60500 | D134: =SUM(D127,D133) -> 29750
A136: Antragsteller*in 2 (bitte Name einsetzen)
A137: Sachkosten | E137: Erläuterungen
A138: Open Access-Gebühren
A139: Veranstaltungen
A140: Werkverträge
A141: Reisekosten
A142: Weitere SK | E142: Bitte definieren Sie die Ausgabe
A143: Gesamt Sachkosten | B143: =SUM(B138:B142) -> 0 | C143: =SUM(C138:C142) -> 0 | D143: =SUM(D138:D142) -> 0
A144: Personalkosten
A145: E9-12, Stellenumfang bitte hier eintragen
A146: E13, Stellenumfang bitte hier eintragen
A147: E14-15, Stellenumfang bitte hier eintragen
A148: Personalkosten SHK
A149: Gesamt Personalkosten | B149: =SUM(B145:B148) -> 0 | C149: =SUM(C145:C148) -> 0 | D149: =SUM(D145:D148) -> 0
A150: Gesamt 2 | B150: =SUM(B143,B149) -> 0 | C150: =SUM(C143,C149) -> 0 | D150: =SUM(D143,D149) -> 0
A152: Antragsteller*in 3 (bitte Name einsetzen)
A153: Sachkosten | E153: Erläuterungen
A154: Open Access-Gebühren
A155: Veranstaltungen
A156: Werkverträge
A157: Reisekosten
A158: Weitere SK | E158: Bitte definieren Sie die Ausgabe
A159: Gesamt Sachkosten | B159: =SUM(B154:B158) -> 0 | C159: =SUM(C154:C158) -> 0 | D159: =SUM(D154:D158) -> 0
A160: Personalkosten
A161: E9-12, Stellenumfang bitte hier eintragen
A162: E13, Stellenumfang bitte hier eintragen
A163: E14-15, Stellenumfang bitte hier eintragen
A164: Personalkosten SHK
A165: Gesamt Personalkosten | B165: =SUM(B161:B164) -> 0 | C165: =SUM(C161:C164) -> 0 | D165: =SUM(D161:D164) -> 0
A166: Gesamt 3 | B166: =SUM(B159,B165) -> 0 | C166: =SUM(C159,C165) -> 0 | D166: =SUM(D159,D165) -> 0
A168: Gesamtbudget Technische Universität nach Jahr | B168: =SUM(B134,B150,B166) -> 29250 | C168: =SUM(C134,C150,C166) -> 60500 | D168: =SUM(D134,D150,D166) -> 29750
A169: Gesamtbudget Technische Universität nach Laufzeit | B169: =SUM(B168,C168,D168) -> 119500
A171: Charité - Universitätsmedizin Berlin | B171: 2021 | C171: 2022 | D171: 2023
A172: Antragsteller*in 1 (bitte Name einsetzen)
A173: Sachkosten | E173: Erläuterungen
A174: Open Access-Gebühren
A175: Veranstaltungen
A176: Werkverträge
A177: Reisekosten
A178: Weitere SK | E178: Bitte definieren Sie die Ausgabe
A179: Gesamt Sachkosten | B179: =SUM(B174:B178) -> 0 | C179: =SUM(C174:C178) -> 0 | D179: =SUM(D174:D178) -> 0
A180: Personalkosten
A181: E9-12, Stellenumfang bitte hier eintragen
A182: E13, Stellenumfang bitte hier eintragen
A183: E14-15, Stellenumfang bitte hier eintragen
A184: Personalkosten SHK
A185: Gesamt Personalkosten | B185: =SUM(B181:B184) -> 0 | C185: =SUM(C181:C184) -> 0 | D185: =SUM(D181:D184) -> 0
A186: Gesamt 1 | B186: =SUM(B179,B185) -> 0 | C186: =SUM(C179,C185) -> 0 | D186: =SUM(D179,D185) -> 0
A188: Antragsteller*in 2 (bitte Name einsetzen)
A189: Sachkosten | E189: Erläuterungen
A190: Open Access-Gebühren
A191: Veranstaltungen
A192: Werkverträge
A193: Reisekosten
A194: Weitere SK | E194: Bitte definieren Sie die Ausgabe
A195: Gesamt Sachkosten | B195: =SUM(B190:B194) -> 0 | C195: =SUM(C190:C194) -> 0 | D195: =SUM(D190:D194) -> 0
A196: Personalkosten
A197: E9-12, Stellenumfang bitte hier eintragen
A198: E13, Stellenumfang bitte hier eintragen
A199: E14-15, Stellenumfang bitte hier eintragen
A200: Personalkosten SHK
A201: Gesamt Personalkosten | B201: =SUM(B197:B200) -> 0 | C201: =SUM(C197:C200) -> 0 | D201: =SUM(D197:D200) -> 0
A202: Gesamt 2 | B202: =SUM(B195,B201) -> 0 | C202: =SUM(C195,C201) -> 0 | D202: =SUM(D195,D201) -> 0
A204: Antragsteller*in 3 (bitte Name einsetzen)
A205: Sachkosten | E205: Erläuterungen
A206: Open Access-Gebühren
A207: Veranstaltungen
A208: Werkverträge
A209: Reisekosten
A210: Weitere SK | E210: Bitte definieren Sie die Ausgabe
A211: Gesamt Sachkosten | B211: =SUM(B206:B210) -> 0 | C211: =SUM(C206:C210) -> 0 | D211: =SUM(D206:D210) -> 0
A212: Personalkosten
A213: E9-12, Stellenumfang bitte hier eintragen
A214: E13, Stellenumfang bitte hier eintragen
A215: E14, Stellenumfang bitte hier eintragen
A216: Personalkosten SHK
A217: Gesamt Personalkosten | B217: =SUM(B213:B216) -> 0 | C217: =SUM(C213:C216) -> 0 | D217: =SUM(D213:D216) -> 0
... 5 more rows
